Cogmind - Beta 13 @@@ ROGUE MODE // 2024.04.11 @ 02:35:49 Player: Astrozal Result: Self-destructed Performance ------------- Evolutions (2) 1000 Regions Visited (3) 600 Robots Destroyed (7) 35 Value Destroyed (179) 179 Prototype IDs (0) 0 Alien Tech Used (0) 0 Bonus (0) 0 TOTAL SCORE: 1814 Bonus ------- None Cogmind --------- Core Integrity 378/550 Matter 106/300 Energy 100/100 System Corruption 0% Temperature Cool (0) Movement Core (200) Ox3 Location -8/Materials Parts ------- > --- POWER (1) -------- (None) > --- PROPULSION (4) --- (None) > --- UTILITY (4) ------ Small Storage Unit ECM Suite > --- WEAPON (2) ------- Heavy Mace > --- INVENTORY (8) ---- Light Assault Rifle Rocket Launcher Peak State ------------ > --- POWER ------------ Ion Engine > --- PROPULSION ------- Flight Unit Flight Unit Flight Unit Flight Unit > --- UTILITY ---------- Small Storage Unit ECM Suite > --- WEAPON ----------- Assault Rifle Heavy Mace > --- INVENTORY -------- Light Assault Rifle Rocket Launcher [Rating: 11] Favorites ----------- Power Ion Engine Engine Ion Engine Propulsion Flight Unit Treads Light Treads Flight Unit Flight Unit Utility Small Storage Unit Device ECM Suite Storage Small Storage Unit Processor Terrain Scan Processor Weapon Assault Rifle Energy Gun Small Laser Ballistic Gun Assault Rifle Ballistic Cannon Improved Light Cannon Special Weapon Mining Laser Impact Weapon Heavy Mace Build | -11 -10 -9 -8 ------- Run | Yrd Mat Mat Mat Slots Evolved 4 | . . 2 2 Power . | . . . . Propulsion 2 | . . 2 . Utility 2 | . . . 2 Weapon . | . . . . Parts Attached 30 | 6 13 10 1 Power 2 | 1 1 . . Engine 2 | 1 1 . . Core . | . . . . Reactor . | . . . . Propulsion 11 | 2 5 4 . Treads 2 | 2 . . . Leg . | . . . . Wheel . | . . . . Hover . | . . . . Flight 9 | . 5 4 . Utility 6 | 1 2 3 . Device 2 | . 1 1 . Storage 3 | 1 1 1 . Processor 1 | . . 1 . Hackware . | . . . . Protection . | . . . . Artifact . | . . . . Weapon 11 | 2 5 3 1 Energy Gun 1 | . 1 . . Energy Cannon . | . . . . Ballistic Gun 7 | 2 3 2 . Ballistic Cannon 1 | . 1 . . Launcher . | . . . . Special Weapon 1 | . . 1 . Impact Weapon 1 | . . . 1 Slashing Weapon . | . . . . Piercing Weapon . | . . . . Special Melee Weapon . | . . . . Unidentified Prototypes . | . . . . Parts Lost 8 | . 2 . 6 Power 2 | . 1 . 1 Propulsion 5 | . 1 . 4 Utility . | . . . . Weapon 1 | . . . 1 Highest Loss Streak 5 | . 2 . 5 To Critical Strikes . | . . . . Average Slot Usage (%) 75 | . 70 97 63 Engine 11 | . 14 11 6 Treads 8 | . 15 . . Flight 21 | . 11 44 25 Device 4 | . . 9 9 Storage 8 | . 8 10 9 Ballistic Gun 16 | . 21 13 6 Special Weapon 1 | . . 8 . Impact Weapon 1 | . . . 6 Naked Turns . | . . . . Heaviest Build 19 | 14 19 15 17 Greatest Support 40 | 40 40 16 16 Greatest Overweight (x) 4 | . 4 1 3 Average Overweight (x) . | . . . . Largest Inventory Capacity 10 | 8 10 8 8 Average Capacity 7 | 6 7 7 8 Most Carried 10 | 6 10 6 4 Average Carried 4 | 3 5 2 2 Final Capacity 8 | 8 5 8 8 Final Carried 6 | 6 5 3 2 Class Distribution -------------------- 77% | Mutant 22% | Sprinter Dominant Class ---------------- Mutant | -10/Materials Sprinter | -9/Materials Mutant | -8/Materials Resources | -11 -10 -9 -8 ----------- Run | Yrd Mat Mat Mat Matter Collected 351 | 240 111 . . Remotely . | . . . . Salvage Created 200 | . 200 . . Parts 17 | . 17 . . Haulers Intercepted . | . . . . Recyclers Shooed . | . . . . Parts Field Recycled . | . . . . Retrieved Matter . | . . . . Parts Self-Destructed . | . . . . Prevented . | . . . . Kills | -11 -10 -9 -8 ------- Run | Yrd Mat Mat Mat Combat Hostiles Destroyed 7 | . 7 . . Guns 7 | . 7 . . Classes Destroyed 2 | . 2 . . Swarmer 3 | . 3 . . Grunt 4 | . 4 . . Best Kill Streak 3 | . 3 . . Combat Bots Only 3 | . 3 . . Max Kills in Single Turn 1 | . 1 . . Gunslinging . | . . . . Exploded . | . . . . Melee . | . . . . Uniques/NPCs Destroyed . | . . . . Combat | -11 -10 -9 -8 -------- Run | Yrd Mat Mat Mat Hostile Shots Fired 100 | . 36 10 54 Missed 33 | . 10 6 17 Damage Taken 896 | . 301 54 541 Core 218 | . 35 11 172 Absorbed by Shields . | . . . . Core Remaining (%) 94 | 100 86 97 . Volleys Fired 34 | . 26 8 . Largest 2 | . 2 1 . Hottest 100 | . 40 100 . Shots Fired 48 | . 40 8 . Gun 40 | . 40 . . Cannon . | . . . . Launcher . | . . . . Special 8 | . . 8 . Kinetic 40 | . 40 . . Thermal 8 | . . 8 . Explosive . | . . . . Electromagnetic . | . . . . Robot Hit Streak 7 | . 7 . . Robot Miss Streak 3 | . 3 . . Penetration Max . | . . . . Secondary Targets . | . . . . Shots Hit Robots 25 | . 25 . . Core Hits 11 | . 11 . . Critical Kills . | . . . . Critical Parts Destroyed . | . . . . Critical Strikes . | . . . . Melee Attacks 2 | . . . 2 Impact 2 | . . . 2 Slashing . | . . . . Piercing . | . . . . Sneak Attacks . | . . . . Combat Hostiles . | . . . . Follow-up Attacks . | . . . . Damage Inflicted 300 | . 300 . . Guns 300 | . 300 . . Cannons . | . . . . Explosions . | . . . . Melee . | . . . . Ramming . | . . . . Kinetic 300 | . 300 . . Thermal . | . . . . Explosive . | . . . . Electromagnetic . | . . . . Impact . | . . . . Slashing . | . . . . Piercing . | . . . . Highest Corruption . | . . . . Average Corruption . | . . . . Corruption Purged . | . . . . Corruption Blocked . | . . . . Overload Shots . | . . . . Overflow Damage . | . . . . Projectiles . | . . . . Explosions . | . . . . Melee . | . . . . Knockbacks . | . . . . Impact . | . . . . Kinetic . | . . . . Secondary . | . . . . Self-Inflicted Damage . | . . . . Shots . | . . . . Rammed . | . . . . Targets Rammed . | . . . . Kicked . | . . . . Crushed . | . . . . Highest Temperature 168 | . 1 168 . Average Temperature 83 | . 1 91 . Received Heat Transfer 360 | . 138 60 162 Siege Activations . | . . . . Robots Corrupted . | . . . . Combat Hostiles . | . . . . Parts Fried . | . . . . Impact Corruptions . | . . . . Robots Melted . | . . . . Combat Hostiles . | . . . . Parts Melted . | . . . . Heat Transferred . | . . . . Parts Sabotaged . | . . . . Parts Stolen . | . . . . Parts Stripped . | . . . . Power Chain Reactions . | . . . . Alert | -11 -10 -9 -8 ------- Run | Yrd Mat Mat Mat Peak Influence 186 | . 186 7 66 Initial 2 | . . . 2 Average 48 | . 86 2 33 Maximum Alert Level . | . . . . Low Security (%) 100 | 100 100 100 100 Level 1 . | . . . . Level 2 . | . . . . Level 3 . | . . . . Level 4 . | . . . . Level 5 . | . . . . High Security . | . . . . Max Security . | . . . . Squads Dispatched 4 | . 2 2 . Investigation 4 | . 2 2 . Extermination . | . . . . Reinforcement . | . . . . Assault . | . . . . Garrison . | . . . . Intercept . | . . . . Searches Triggered . | . . . . Construction Impeded . | . . . . Haulers Reinforced . | . . . . Active Scanning Responses . | . . . . Cargo Convoy Interrupts . | . . . . Stealth | -11 -10 -9 -8 --------- Run | Yrd Mat Mat Mat Distress Signals 2 | . 2 . . Communications Jammed . | . . . . Distress Signals . | . . . . Times Spotted 23 | . 12 6 5 Peak Tracking Total 5 | . 4 5 5 Tactical Retreats 1 | . 1 . . Traps | -11 -10 -9 -8 ------- Run | Yrd Mat Mat Mat Traps Triggered 2 | . . 2 . Indirectly . | . . . . Trap Hack Attempts . | . . . . Triggered . | . . . . Disarmed . | . . . . Reprogrammed . | . . . . Reused . | . . . . Traps Extracted . | . . . . Installed . | . . . . Triggered . | . . . . Machines | -11 -10 -9 -8 ---------- Run | Yrd Mat Mat Mat Machines Disabled . | . . . . Max in Single Turn . | . . . . Machines Repaired . | . . . . Machines Dismantled . | . . . . Machines Sabotaged . | . . . . Overloaded Fab Kills . | . . . . Hacking | -11 -10 -9 -8 --------- Run | Yrd Mat Mat Mat Machines Accessed 8 | . 5 1 2 Terminals 5 | . 4 . 1 Fabricators . | . . . . Repair Stations . | . . . . Recycling Units 3 | . 1 1 1 Scanalyzers . | . . . . Garrison Access . | . . . . Total Hacks 24 | . 12 6 6 Successful 16 | . 5 5 6 Failed 8 | . 7 1 . Catastrophic . | . . . . Database Lockouts . | . . . . Manual 1 | . . . 1 Terminals 11 | . 9 . 2 Fabricators . | . . . . Repair Stations . | . . . . Recycling Units 13 | . 3 6 4 Scanalyzers . | . . . . Garrison Access . | . . . . Terminal Hacks 4 | . 3 . 1 Branch Access Points 1 | . . . 1 Hauler Manifests 1 | . 1 . . Registered Prototypes 1 | . 1 . . Zone Layout 1 | . 1 . . Fabricator Hacks . | . . . . Repair Station Hacks . | . . . . Recycling Unit Hacks 11 | . 2 5 4 Recycle Component 4 | . . 3 1 Process 2 | . . . 2 Report Inventory 2 | . 1 1 . Retrieve Matter 1 | . . . 1 Retrieve Components 2 | . 1 1 . Scanalyzer . | . . . . Garrison Access Hacks . | . . . . Unauthorized Hacks 1 | . . . 1 Terminals 1 | . . . 1 Botnet 1 | . . . 1 Fabricators . | . . . . Repair Stations . | . . . . Recycling Units . | . . . . Scanalyzers . | . . . . Garrison Access . | . . . . Data Cores Recovered . | . . . . Used . | . . . . Hacking Detections 6 | . 4 1 1 Full Trace Events 3 | . 2 1 . Feedback Events . | . . . . Feedback Blocked . | . . . . Robot Schematics Acquired . | . . . . Robots Built . | . . . . Authchips . | . . . . Time . | . . . . Total Robot Build Rating . | . . . . Part Schematics Acquired . | . . . . Parts Built . | . . . . Authchips . | . . . . Time . | . . . . Total Part Build Rating . | . . . . Parts Repaired . | . . . . Time . | . . . . Parts Recycled 4 | . . 3 1 Recycled Matter 35 | . . . 35 Retrieved Matter 35 | . . . 35 Retrieved Components 13 | . 10 3 . Parts Scanalyzed . | . . . . Part Schematics Acquired . | . . . . Parts Damaged . | . . . . Bothacking | -11 -10 -9 -8 ------------ Run | Yrd Mat Mat Mat Used RIF Installer . | . . . . Robots Hacked . | . . . . Non-combat . | . . . . Combat . | . . . . Robot Hacks Applied . | . . . . Relay Couplers Released . | . . . . Fabnet Peak Effective % . | . . . . Robots Rewired . | . . . . Allies Hacked . | . . . . Hacks Repelled . | . . . . Allies | -11 -10 -9 -8 -------- Run | Yrd Mat Mat Mat Total Allies . | . . . . Largest Group . | . . . . Highest-Rated Group . | . . . . Highest-Rated Ally . | . . . . Total Orders . | . . . . Ally Attacks . | . . . . Total Damage . | . . . . Kills . | . . . . Allies Corrupted . | . . . . Allies Melted . | . . . . Intel | -11 -10 -9 -8 ------- Run | Yrd Mat Mat Mat Robot Analysis Total . | . . . . Derelict Logs Recovered . | . . . . Drone Launches . | . . . . Drone Recoveries . | . . . . Exploration | -11 -10 -9 -8 ------------- Run | Yrd Mat Mat Mat Turns Passed 844 | 127 410 152 155 Spaces Moved 1020 | 95 405 314 206 Core 40 | 39 . . 1 Treads 163 | 56 107 . . Legs . | . . . . Wheels . | . . . . Hover . | . . . . Flight 817 | . 298 314 205 Fastest Speed 31 | 50 37 31 31 Average Speed 63 | 114 72 31 71 Slowest Speed 360 | 160 360 117 200 Overloaded Moves . | . . . . Propulsion Burnouts . | . . . . Robots Hopped 6 | . 3 1 2 Cave-ins Triggered . | . . . . Exploration Rate (%) 22 | 4 50 15 22 Regions Visited 3 Branch Regions . Pre-discovered Areas . | . . . . Known Exits Taken . | . . . . Unknown Exits Taken 3 | 1 1 1 . Scrap Searched . | . . . . Spaces Dug 10 | . . 8 2 Terrain Destroyed 10 | . . 8 2 Melee 2 | . . . 2 Projectile 8 | . . 8 . AOE . | . . . . Terrain Rammed . | . . . . Walls Destroyed . | . . . . Machines Disabled . | . . . . Actions | -11 -10 -9 -8 --------- Run | Yrd Mat Mat Mat Total 1144 | 111 485 339 209 Wait 22 | 4 16 2 . Move 1006 | 94 399 311 202 Hop 5 | . 2 1 2 Pick Up 19 | 7 6 5 1 Fast Attach 18 | 5 9 4 . Attach 9 | 1 2 5 1 Detach 8 | . 7 1 . Swap 3 | . 2 1 . Drop 18 | . 16 1 1 Fire 34 | . 26 8 . Melee 2 | . . . 2 Ram . | . . . . Kick . | . . . . Crush . | . . . . Escape Stasis . | . . . . Rewire . | . . . . Trap . | . . . . Miscellaneous . | . . . . Route ------- -11/Scrapyard -10/Materials (discovered 2 exits: *Mat x2) -9/Materials -8/Materials (discovered 2 exits: Sto x2) History --------- Turn | Location | Event 24 | -11/Scrapyard | Discovered new exit (range 15) 128 | -11/Scrapyard | Entered Materials 303 | -10/Materials | Build established: Mutant 408 | -10/Materials | Discovered new exit (range 15) 434 | -10/Materials | Discovered new exit (range 21) 538 | -10/Materials | Entered another Materials area 538 | -9/Materials | Evolved 2 slots: Propulsion x2 584 | -9/Materials | Discovered new exit (range 15) 690 | -9/Materials | Entered another Materials area 690 | -8/Materials | Evolved 2 slots: Utility x2 711 | -8/Materials | Identified exit to Storage 845 | -8/Materials | Self-destructed Last Messages --------------- Map updated. Installed Trojans can be viewed by examining an interactive machine. See effect description details by clicking on the Trojan name. Flight Unit destroyed. U-05 Engineer builds a Wall. K-01 Serf collects debris. U-05 Engineer builds a Wall. K-01 Serf collects debris. Assault Rifle destroyed. Flight Unit destroyed. Ion Engine destroyed. Flight Unit destroyed. K-01 Serf collects debris. Critical hit (Burn: +37). Y-45 Defender destroyed. K-01 Serf collects debris. R-06 Scavenger collects Lgt. Treads. Flight Unit destroyed. K-01 Serf collects debris. Map ----- +----------------------------------------------------+ | ?????????# ## """ """ # #??????????????????????? | | ?????????# ?# # +??????????????????????? | | ?????????# ?# # #??????????????????????? | | ?????????? ?# """T""" # #??????????????????????? | | ?????????? ?########### #??????????????????????? | | ?????????? ???######### #??????????????????????? | | ?????????? ???# # #??????????????????????? | | ?????????? ???# """ # #??????????????????????? | | ??????????????# = "T" +! +??????????????????????? | | ??????????????# #% #??????????????????????? | | ?????????????# [ # #??????????????????????? | | ?????????????##########YY #??????????????????????? | | ??????????????????????# #??????????????????????? | | ??????????????????????# #??????????????????????? | | ??????????????????????# #?????????#????????????? | | ??????????????????????# ######### ?????????????? | | ??????????????????????# # ?????????????? | | ??????????????????????# # """ ?????????????? | | ?????????? #######+### # """ ?????????????? | | ????????? # """ #????????????? | | ????????? # [[ """ #????????????? | | ????????? # [! #????????????? | | ??????????#########+### + [! #????????????? | | ??????????????????????# # #????????????? | | ??????????????????????# ###########????????????? | | ??????????????????????# @#??????????????????????? | | ??????????????????????# ?????????????????????? | | ??????????????????????# ???????????????????? | | ??????????????????????# ?????????????????? | | ??????????????????????######## ???????????????? | | ??????????????????????????????? k#??????????????? | | ???????????????????????????????? #??????????????? | | ????????????????????????????????? #??????????????? | | ??????????????????????????????????#??????????????? | | ?????????????????????????????????????????????????? | | ?????????????????????????????????????????????????? | | ?????????????????????????????????????????????????? | | ?????????????????????????????????????????????????? | | ?????????????????????????????????????????????????? | | ?????????????????????????????????????????????????? | | ?????????????????????????????????????????????????? | | ?????????????????????????????????????????????????? | | ?????????????????????????????????????????????????? | | ?????????????????????????????????????????????????? | | ?????????????????????????????????????????????????? | | ?????????????????????????????????????????????????? | | ????????????????????????????????>????????????????? | | ?????????????????????????????????????????????????? | | ?????????????????????????????????????????????????? | | ?????????????????????????????????????????????????? | +----------------------------------------------------+ Best States ------------- Heat Dissipation 31 Energy Generation 10 Energy Capacity 250 Matter Stores 300 Matter Capacity 300 Sight Range 16 Terrain Scan Density 85 Evasion (%) 63 Recoil Reduction 2 Item Schematics ----------------- None Robot Schematics ------------------ None Fabricated ------------ Nothing Alien Tech Used ----------------- None Achievements -------------- True Hacker Challenges ------------ None Game ------ Seed ThunderGatlingRail Manual? 0 Play Time 00:30:58 Cumulative 10.7 hours Start 2024.04.11 @ 01:37:26 End 2024.04.11 @ 02:35:49 Sessions 1 Manual Loads 0 Difficulty Rogue Special Mode None Game No. 21 Rogue 21 Adventurer 0 Explorer 0 Win Type - Total 0 Types 0/0/0/0/0/0/0/0/0 Lore% 7 Gallery% 15 Achievement% 15 Wizard Run 0 Options --------- Layout 1 ASCII 1 Keyboard 0 Movement Arrows Keybinds 0 Fullscreen 1 Font 16/Terminus Map View 50x40 Zoom Use 0% Tactical HUD 0 Map Filters NONE Filters NONE Steam SD RUN: d8ede629-a2f8-4d6a-b2ff-6b2bfc3ca8c6